Cogmind - Beta 16.1 @@@ ROGUE MODE // 2026.01.11 @ 12:38:47 Player: Minty Result: Destroyed by D-53 Grenadier with Mini Grenade Launcher Performance ------------- Evolutions (0) 0 Regions Visited (4) 800 Robots Destroyed (10) 50 Value Destroyed (271) 271 Prototype IDs (0) 0 Alien Tech Used (0) 0 Bonus (0) 0 TOTAL SCORE: 1121 Bonus ------- None Cogmind --------- Core Integrity 0/250 Matter 300/300 Energy 94/100 System Corruption 0% Temperature Cool (0) Movement Core (50) Location -9/Mines Parts ------- > --- POWER (1) -------- (None) > --- PROPULSION (2) --- (None) > --- UTILITY (2) ------ Heat Sink > --- WEAPON (2) ------- (None) > --- INVENTORY (5) ---- Improved Ion Engine Improved Ion Engine Terrain Scan Processor Shield Generator Botcube Peak State ------------ > --- POWER ------------ Ion Engine > --- PROPULSION ------- Light Treads Light Treads > --- UTILITY ---------- Small Storage Unit Shield Generator > --- WEAPON ----------- Heavy EM Pulse Gun Heavy EM Pulse Gun > --- INVENTORY -------- Light Ion Engine Wheel Wheel Terrain Scan Processor Terrain Scan Processor Heavy EM Pulse Gun Heavy EM Pulse Gun Botcube [Rating: 12] Favorites ----------- Power Ion Engine Engine Ion Engine Propulsion Wheel Treads Light Treads Leg Aluminum Leg Wheel Wheel Utility Small Storage Unit Device Heat Sink Storage Small Storage Unit Weapon Heavy EM Pulse Gun Energy Gun Heavy EM Pulse Gun Ballistic Gun Light Assault Rifle Build | -11 -10 -10 -10 -9 ------- Run | Yrd Mat Min Exi Min Slots Evolved . | . . . . . Power . | . . . . . Propulsion . | . . . . . Utility . | . . . . . Weapon . | . . . . . Parts Attached 10 | . 10 . . . Power . | . . . . . Engine . | . . . . . Core . | . . . . . Reactor . | . . . . . Propulsion 4 | . 4 . . . Treads 2 | . 2 . . . Leg . | . . . . . Wheel 2 | . 2 . . . Hover . | . . . . . Flight . | . . . . . Utility 2 | . 2 . . . Device 2 | . 2 . . . Storage . | . . . . . Processor . | . . . . . Hackware . | . . . . . Protection . | . . . . . Artifact . | . . . . . Weapon 4 | . 4 . . . Energy Gun 4 | . 4 . . . Energy Cannon . | . . . . . Ballistic Gun . | . . . . . Ballistic Cannon . | . . . . . Launcher . | . . . . . Special Weapon . | . . . . . Impact Weapon . | . . . . . Slashing Weapon . | . . . . . Piercing Weapon . | . . . . . Special Melee Weapon . | . . . . . Unidentified Prototypes . | . . . . . Parts Lost 7 | . 2 . . 5 Power 1 | . . . . 1 Propulsion 2 | . . . . 2 Utility . | . . . . . Weapon 4 | . 2 . . 2 Highest Loss Streak 5 | . 1 . . 5 To Critical Strikes 1 | . 1 . . . Average Backups 6 | 6 6 6 7 7 Power 3 | 1 1 3 4 4 Propulsion . | 4 1 . . . Utility 2 | . 1 3 3 3 Weapon . | 1 1 . . . Tool/Special . | . . . . . Unused Backups 16 | . 8 . . 8 Power 7 | . 1 . . 6 Propulsion 2 | . 2 . . . Utility 3 | . 1 . . 2 Weapon 4 | . 4 . . . Tool/Special . | . . . . . Average Slot Usage (%) 98 | . 96 100 100 98 Engine 14 | . 14 14 14 14 Treads 1 | . 3 . . . Leg 2 | . 5 . . . Wheel 24 | . 18 28 28 28 Device 13 | . 11 14 14 14 Storage 14 | . 14 14 14 14 Energy Gun 27 | . 25 28 28 27 Peak Build Rating 12 | 7 12 11 11 11 Average Rating 10 | 7 10 10 11 10 On Entrance 9 | 7 7 10 11 11 Avg Prop Armor Cover (%) . | . . . . . Naked Turns . | . . . . . Heaviest Build 18 | 12 18 17 17 17 Greatest Support 40 | 20 40 20 20 20 Greatest Overweight (x) 5 | . 5 . . 1 Average Overweight (x) . | . . . . . Largest Inventory Capacity 8 | 8 8 8 8 8 Average Capacity 7 | 8 8 8 8 7 Most Carried 8 | 7 8 8 8 8 Average Carried 7 | 7 7 7 8 7 Final Capacity 8 | 8 8 8 8 5 Final Carried 8 | 7 7 8 8 5 Class Distribution -------------------- 100% | Mutant Dominant Class ---------------- Mutant | -10/Materials Mutant | -10/Mines Mutant | -10/Exiles Mutant | -9/Mines Resources | -11 -10 -10 -10 -9 ----------- Run | Yrd Mat Min Exi Min Matter Collected 290 | 192 98 . . . Remotely . | . . . . . Salvage Created 409 | . 289 120 . . Parts 30 | . 19 11 . . Haulers Intercepted 1 | . 1 . . . Recyclers Shooed . | . . . . . Parts Field Recycled . | . . . . . Retrieved Matter . | . . . . . Parts Self-Destructed . | . . . . . Prevented . | . . . . . Parts Restored . | . . . . . Kills | -11 -10 -10 -10 -9 ------- Run | Yrd Mat Min Exi Min Combat Hostiles Destroyed 9 | . 7 2 . . Guns 9 | . 7 2 . . Classes Destroyed 4 | . 3 1 . . Hauler 1 | . 1 . . . Swarmer 3 | . 3 . . . Grunt 4 | . 4 . . . Sentry 2 | . . 2 . . Best Kill Streak 4 | . 4 2 . . Combat Bots Only 4 | . 4 2 . . Max Kills in Single Turn 1 | . 1 1 . . Gunslinging . | . . . . . Exploded . | . . . . . Melee . | . . . . . Uniques/NPCs Destroyed . | . . . . . Combat | -11 -10 -10 -10 -9 -------- Run | Yrd Mat Min Exi Min Hostile Shots Fired 46 | . 28 10 . 8 Missed 11 | . 6 5 . . Hits 35 | . 22 5 . 8 Projectile 35 | . 22 5 . 8 AOE 8 | . . . . 8 Critical Strikes 3 | . 1 2 . . Damage Taken 651 | . 220 74 . 357 Core 277 | . 30 17 . 230 Absorbed by Shields 32 | . 32 . . . Core Remaining (%) 100 | 100 . . . . Volleys Fired 24 | . 19 5 . . Largest 2 | . 2 2 . . Hottest 90 | . 90 90 . . Shots Fired 47 | . 37 10 . . Gun 47 | . 37 10 . . Cannon . | . . . . . Launcher . | . . . . . Special . | . . . . . Kinetic . | . . . . . Thermal . | . . . . . Explosive . | . . . . . Electromagnetic 47 | . 37 10 . . Robot Hit Streak 6 | . 6 6 . . Robot Miss Streak 3 | . 3 1 . . Penetration Max . | . . . . . Secondary Targets 1 | . 1 . . . Max Gunslinging Chain 1 | . 1 . . . Shots Hit Robots 30 | . 22 8 . . Core Hits 14 | . 10 4 . . Critical Kills . | . . . . . Critical Parts Destroyed . | . . . . . Critical Strikes 1 | . 1 . . . Corrupt 1 | . 1 . . . Melee Attacks . | . . . . . Impact . | . . . . . Slashing . | . . . . . Piercing . | . . . . . Sneak Attacks . | . . . . . Combat Hostiles . | . . . . . Follow-up Attacks . | . . . . . Damage Inflicted 446 | . 343 103 . . Guns 446 | . 343 103 . . Cannons . | . . . . . Explosions . | . . . . . Melee . | . . . . . Ramming . | . . . . . Kinetic . | . . . . . Thermal . | . . . . . Explosive . | . . . . . Electromagnetic 446 | . 343 103 . . Impact . | . . . . . Slashing . | . . . . . Piercing . | . . . . . Highest Corruption . | . . . . . Average Corruption . | . . . . . Corruption Purged . | . . . . . Corruption Blocked . | . . . . . Overload Shots . | . . . . . Overflow Damage . | . . . . . Projectiles . | . . . . . Explosions . | . . . . . Melee . | . . . . . Knockbacks . | . . . . . Impact . | . . . . . Kinetic . | . . . . . Secondary . | . . . . . Self-Inflicted Damage . | . . . . . Shots . | . . . . . Rammed . | . . . . . Targets Rammed . | . . . . . Kicked . | . . . . . Crushed . | . . . . . Highest Temperature 162 | . 162 63 . . Average Temperature 52 | . 54 44 . . Received Heat Transfer 150 | . 87 63 . . Siege Activations . | . . . . . Martial Activations . | . . . . . Shielding Activations . | . . . . . Robots Disrupted . | . . . . . Combat Hostiles . | . . . . . Robots Corrupted . | . . . . . Combat Hostiles . | . . . . . Parts Fried 2 | . 2 . . . Impact Corruptions . | . . . . . Robots Melted . | . . . . . Combat Hostiles . | . . . . . Parts Melted . | . . . . . Heat Transferred . | . . . . . Parts Sabotaged . | . . . . . Parts Stolen . | . . . . . Parts Stripped . | . . . . . Power Chain Reactions . | . . . . . Alert | -11 -10 -10 -10 -9 ------- Run | Yrd Mat Min Exi Min Maximum Alert Level . | . . . . . Low Security (%) 100 | 100 100 100 . 100 Level 1 . | . . . . . Level 2 . | . . . . . Level 3 . | . . . . . Level 4 . | . . . . . Level 5 . | . . . . . High Security . | . . . . . Max Security . | . . . . . Peak Influence 126 | . 126 71 . . Initial 31 | . . 31 . . Average 28 | . 50 16 . . Influence Increases 263 | . 223 40 . . Destroy 0b10 Robot/C 180 | . 140 40 . . Destroy 0b10 Robot/NC 5 | . 5 . . . Destroy Leader 32 | . 32 . . . Successful Hack 16 | . 16 . . . Lose Combat Pursuer 30 | . 30 . . . Influence Decreases 263 | . 140 123 . . Entered New Map 52 | . . 52 . . Time Decay 191 | . 120 71 . . Lost Part 20 | . 20 . . . Squads Dispatched 1 | . 1 . . . Investigation 1 | . 1 . . . Extermination . | . . . . . Reinforcement . | . . . . . Assault . | . . . . . Garrison . | . . . . . Intercept . | . . . . . Searches Triggered . | . . . . . Construction Impeded . | . . . . . Haulers Reinforced . | . . . . . Active Scanning Responses . | . . . . . Cargo Convoy Interrupts . | . . . . . Stealth | -11 -10 -10 -10 -9 --------- Run | Yrd Mat Min Exi Min Distress Signals . | . . . . . Communications Jammed . | . . . . . Distress Signals . | . . . . . Times Spotted 15 | . 11 2 . 2 Peak Tracking Total 3 | . 3 2 . 2 Tactical Retreats 1 | . 1 . . . Traps | -11 -10 -10 -10 -9 ------- Run | Yrd Mat Min Exi Min Traps Triggered . | . . . . . Indirectly . | . . . . . Trap Hack Attempts . | . . . . . Triggered . | . . . . . Disarmed . | . . . . . Reprogrammed . | . . . . . Reused . | . . . . . Traps Extracted . | . . . . . Installed . | . . . . . Triggered . | . . . . . Machines | -11 -10 -10 -10 -9 ---------- Run | Yrd Mat Min Exi Min Machines Disabled 1 | . . 1 . . Max in Single Turn 1 | . . 1 . . Machines Repaired . | . . . . . Machines Dismantled . | . . . . . Machines Sabotaged . | . . . . . Overloaded Fab Kills . | . . . . . Hacking | -11 -10 -10 -10 -9 --------- Run | Yrd Mat Min Exi Min Machines Accessed 3 | . 3 . . . Terminals 3 | . 3 . . . Fabricators . | . . . . . Repair Stations . | . . . . . Recycling Units . | . . . . . Scanalyzers . | . . . . . Garrison Access . | . . . . . Total Hacks 12 | . 12 . . . Successful 3 | . 3 . . . Failed 9 | . 9 . . . Catastrophic 1 | . 1 . . . Database Lockouts . | . . . . . Manual 7 | . 7 . . . Terminals 12 | . 12 . . . Fabricators . | . . . . . Repair Stations . | . . . . . Recycling Units . | . . . . . Scanalyzers . | . . . . . Garrison Access . | . . . . . Terminal Hacks 1 | . 1 . . . Zone Layout 1 | . 1 . . . Fabricator Hacks . | . . . . . Repair Station Hacks . | . . . . . Recycling Unit Hacks . | . . . . . Scanalyzer . | . . . . . Garrison Access Hacks . | . . . . . Unauthorized Hacks 2 | . 2 . . . Terminals 2 | . 2 . . . Botnet 1 | . 1 . . . Disrupt 1 | . 1 . . . Fabricators . | . . . . . Repair Stations . | . . . . . Recycling Units . | . . . . . Scanalyzers . | . . . . . Garrison Access . | . . . . . Data Cores Recovered . | . . . . . Used . | . . . . . Hacking Detections 3 | . 3 . . . Full Trace Events 2 | . 2 . . . Feedback Events . | . . . . . Feedback Blocked . | . . . . . Robot Schematics Acquired . | . . . . . Robots Built . | . . . . . Authchips . | . . . . . Time . | . . . . . Total Robot Build Rating . | . . . . . Part Schematics Acquired . | . . . . . Parts Built . | . . . . . Authchips . | . . . . . Time . | . . . . . Total Part Build Rating . | . . . . . Part Studies Acquired . | . . . . . Parts Repaired . | . . . . . Time . | . . . . . Parts Recycled . | . . . . . Recycled Matter . | . . . . . Retrieved Matter . | . . . . . Retrieved Components . | . . . . . Parts Scanalyzed . | . . . . . Part Schematics Acquired . | . . . . . Parts Damaged . | . . . . . Bothacking | -11 -10 -10 -10 -9 ------------ Run | Yrd Mat Min Exi Min Used RIF Installer . | . . . . . Robots Hacked . | . . . . . Non-combat . | . . . . . Combat . | . . . . . Robot Hacks Applied . | . . . . . Relay Couplers Released . | . . . . . Fabnet Peak Effective % . | . . . . . Robots Rewired . | . . . . . Allies Hacked . | . . . . . Hacks Repelled . | . . . . . Allies | -11 -10 -10 -10 -9 -------- Run | Yrd Mat Min Exi Min Total Allies 2 | . . 2 . . Largest Group 2 | . . 2 2 . Highest-Rated Group 38 | . . 38 38 . Highest-Rated Ally 31 | . . 31 31 . Total Orders . | . . . . . Ally Attacks . | . . . . . Total Damage . | . . . . . Kills . | . . . . . Allies Corrupted . | . . . . . Allies Melted . | . . . . . Intel | -11 -10 -10 -10 -9 ------- Run | Yrd Mat Min Exi Min Active Infowar (turns) . | . . . . . Robot Analysis Total . | . . . . . Derelict Logs Recovered 2 | . . 2 . . Drone Launches . | . . . . . Drone Recoveries . | . . . . . Exploration | -11 -10 -10 -10 -9 ------------- Run | Yrd Mat Min Exi Min Turns Passed 988 | 2 362 310 175 139 Spaces Moved 982 | 2 292 338 199 151 Core 1 | . 1 . . . Treads 25 | . 25 . . . Legs 50 | 2 48 . . . Wheels 906 | . 218 338 199 151 Hover . | . . . . . Flight . | . . . . . Fastest Speed 80 | 120 80 80 80 80 Average Speed 84 | 120 94 80 80 80 Slowest Speed 300 | 120 300 80 80 95 Overloaded Moves . | . . . . . Propulsion Burnouts . | . . . . . Robots Hopped . | . . . . . Potential Cave-ins . | . . . . . Cave-ins Triggered . | . . . . . Exploration Rate (%) 46 | 1 48 83 62 37 Regions Visited 4 Branch Regions 3 Pre-discovered Areas . | . . . . . Known Exits Taken . | . . . . . Unknown Exits Taken 4 | 1 1 1 1 . Scrap Searched 2 | . . 1 . 1 Spaces Dug . | . . . . . Terrain Destroyed . | . . . . . Melee . | . . . . . Projectile . | . . . . . AOE . | . . . . . Terrain Rammed . | . . . . . Walls Destroyed . | . . . . . Machines Disabled . | . . . . . Actions | -11 -10 -10 -10 -9 --------- Run | Yrd Mat Min Exi Min Total 1095 | 1 342 367 214 171 Wait 60 | . 6 24 16 14 Move 978 | 1 291 337 198 151 Hop . | . . . . . Pick Up 8 | . 6 1 . 1 Fast Attach 4 | . 4 . . . Attach 2 | . 2 . . . Detach 3 | . 3 . . . Swap 4 | . 4 . . . Drop 12 | . 7 . . 5 Fire 24 | . 19 5 . . Melee . | . . . . . Ram . | . . . . . Kick . | . . . . . Crush . | . . . . . Escape Stasis . | . . . . . Rewire . | . . . . . Trap . | . . . . . Miscellaneous . | . . . . . Route ------- -11/Scrapyard -10/Materials (discovered 3 exits: [*Mat] / [*Min x2]) -10/Mines (discovered 2 exits: [*Exi] / [*Sub]) -10/Exiles (discovered 2 exits: [*Min x2]) -9/Mines History --------- Turn | Location | Event 1 | -11/Scrapyard | Discovered new exit (range 1) 3 | -11/Scrapyard | Entered Materials 25 | -10/Materials | Discovered new exit (range 15) 221 | -10/Materials | Discovered new exit (range 15) 308 | -10/Materials | Build established: Mutant 361 | -10/Materials | Discovered new exit (range 6) 365 | -10/Materials | Entered Mines 408 | -10/Mines | Deemed a non-threat by the Exiles lab entrance 409 | -10/Mines | Discovered new exit (range 5) 454 | -10/Mines | Learned Materials non-interactive machine intel 502 | -10/Mines | Learned location of 1 exit from Materials 640 | -10/Mines | Discovered new exit (range 13) 675 | -10/Mines | Entered Exiles 675 | -10/Exiles | Found Exiles lab abandoned 675 | -10/Exiles | Accompanied by 2 allies 687 | -10/Exiles | Discovered new exit (range 15) 705 | -10/Exiles | Led the pair of lost Derelicts to a safe place 822 | -10/Exiles | Discovered new exit (range 15) 850 | -10/Exiles | Entered Mines 862 | -9/Mines | Met a Derelict bent on vengeance 949 | -9/Mines | Assembled infested the area 986 | -9/Mines | Core integrity fell below 50% 988 | -9/Mines | Core integrity fell below 20% 989 | -9/Mines | Destroyed by D-53 Grenadier with Mini Grenade Launcher Last Messages --------------- 00916_ Found 40 Matter. 00927_ Dropped Lgt. Ion Engine. 00929_ Acquired Imp. Ion Engine. 00949_ ALERT: Infestation in the mines, dispatching Demolisher response squad. 00952_ ZE-5DE(g): "UNAWARE KILLED MY BEST FRIEND! VENGEANCE!" 00978_ Hvy. EM Pulse Gun destroyed. 00978_ U-05 Engineer destroyed. 00982_ Wheel destroyed. 00983_ Ion Engine destroyed. 00984_ K-01 Serf collects debris. 00987_ The unstable cave ceiling collapses. 00987_ Wheel destroyed. 00987_ Hvy. EM Pulse Gun destroyed. 00987_ Dropped Ion Engine. 00987_ K-01 Serf collects debris. 00987_ Dropped Ion Engine. 00988_ The unstable cave ceiling collapses. 00988_ Dropped Terrain Scan Processor. 00988_ Dropped Sml. Storage Unit. Map ----- +----------------------------------------------------+ | ?????????????????? ### ?????# ##? | | ?????????????????? ???# ?????# #?? | | ????????????????? ?????# ?????# #?? | | ?????????????????? ??????# ??????## #?? | | ?????????????????????????# ???????#### #?? | | ?????????????????????????# ??????????## #?? | | ?????????????????????????#?*??????????# #?? | | ?????????????????????????#=!?????????## #?? | | ???????????????????????## #???????## ##?? | | ???????????????????????? ???????# #??? | | ???????????????????????? ???????# #??? | | ????????????????????????# % #??????# ##?? | | ????????????????????????# #?????## #?? | | ????????????????????????# #????## #? | | ???????????????????????## #??### #? | | ??????????????#????????# #### ## #? | | ??????????????? ???###?# d # #### #? | | ??????????????? ### ## !%| ## ##? | | ???????????????? # k## #### ####?? | | ?????????????????? #?####????? | | ??????????????????? ## ##?????????? | | ???????????????????? # d ##??????????? | | ?????????????????????# ##?????????? | | ????????????????????## % #?????????? | | ????????????????????# ! #????????? | | ?????????????????????# @! ## #????????? | | ?????????????? * ### #????????? | | ?????????? ## # #?## ##????????? | | ????????????????## ??# k##???# #?????????? | | ?????????????????????## ???? ?????????? | | ??????????????????????# ??? #????????? | | ??????????????????????####### #??# ##????????? | | ?????????????????????????????# #???##?????????? | | ??????????????????????????????! ##??????????????? | | ?????????????????????????????? #???????????????? | | ?????????????????????????????? #???????????????? | | ??????????????????????????????? #???????????????? | | ??????????????????????????????? ???????????????? | | ???????????????????????????????#????????????????? | | ????????????????????????????????????????????????? | | ????????????????????????????????????????????????? | | ????????????????????????????????????????????????? | | ????????????????????????????????????????????????? | | ????????????????????????????????????????????????? | | ????????????????????????????????????????????????? | | | | | | | | | | | +----------------------------------------------------+ Best States ------------- Heat Dissipation 35 Energy Generation 10 Energy Capacity 250 Matter Stores 300 Matter Capacity 300 Sight Range 16 Terrain Scan Density 10 Evasion (%) 55 Recoil Reduction 2 Item Schematics ----------------- None Robot Schematics ------------------ None Fabricated ------------ Nothing Repaired ---------- Nothing Studied --------- None Alien Tech Used ----------------- None Achievements -------------- None Challenges ------------ None Game ------ Seed ThiefArcsightDeflector Manual? 0 Play Time 00:05:56 Cumulative 1242.5 hours Start 2026.01.11 @ 12:33:05 End 2026.01.11 @ 12:38:47 Sessions 1 Manual Loads 0 Difficulty Rogue Special Mode None Game No. 1528 Rogue 1244 Adventurer 124 Explorer 160 Win Type - Total 59 Types 45/0/8/4/1/0/0/1/0/0 Lore% 93 Gallery% 86 Achievement% 67 Wizard Run 0 Options --------- Layout 0 ASCII 0 Keyboard 1 Movement Numpad Keybinds 0 Fullscreen 2 Font 18/X11 Map View 76x50 Zoom Use 0% Tactical HUD 1 Map Filters NONE Filters NONE Steam 1 RUN: cf01d83d-1b74-464e-860e-011f7e3fdf69